bitfinex-derivatives/quotes_ETHF0:USTF0_20251021
["timestamp","ask_amount","ask_price","bid_price","bid_amount"]
[1761018446163,1.03113583,3934.6,3934.5,0.5686]
[1761018446356,1.36563583,3934.6,3934.5,0.5686]
[1761018449669,0.7858,3934.4,3934.3,0.5392]
[1761018450066,0.7858,3934.2,3934.1,0.5392]
[1761018450465,0.7858,3934.2,3934.1,0.7663]
[1761018450771,1.38038107,3934.2,3934.1,0.7663]
[1761018451967,1.04178107,3934.2,3934.1,0.7663]
[1761018452169,0.67619,3934.5,3934.4,0.7663]
[1761018452367,0.81360384,3934.5,3934.4,0.7663]
[1761018452568,0.81360384,3934.5,3934.4,1.22369]
[1761018452768,0.59480384,3934.5,3934.4,1.22369]
[1761018452973,0.67616,3934.7,3934.6,0.7663]
[1761018453168,1.27094095,3934.7,3934.6,0.7663]
[1761018453973,1.27094095,3934.7,3934.6,1.22367]
[1761018454173,1.27094095,3934.7,3934.6,0.7663]
[1761018454373,1.83794095,3934.7,3934.6,0.3192]
[1761018454670,2.97440851,3934.7,3934.6,0.3192]
[1761018455069,1.24327,3933.7,3933.6,0.22252715]
[1761018455369,1.83805095,3933.7,3933.6,0.22252715]
[1761018455569,1.83805095,3933.7,3933.6,0.54172715]
[1761018458173,1.83805095,3933.7,3933.6,0.00252715]
[1761018458564,1.83805095,3933.7,3933.6,0.32172715]
[1761018459374,1.83805095,3933.7,3933.6,0.54172715]
[1761018459570,1.83805095,3933.7,3933.6,0.76882715]
[1761018460773,1.49945095,3933.7,3933.6,0.76882715]
[1761018460968,1.49945095,3933.7,3933.6,1.22631715]
[1761018461169,1.04198095,3933.7,3933.6,1.22631715]
[1761018461369,1.49945095,3933.7,3933.6,1.22631715]
[1761018463469,1.05225095,3933.7,3933.6,1.22631715]
[1761018463669,1.27105095,3933.7,3933.6,1.22631715]
[1761018465982,0.59478095,3933.7,3933.6,1.22631715]
[1761018466373,1.05225095,3933.7,3933.6,1.22631715]
[1761018467578,0.59478095,3933.7,3933.6,1.22631715]
[1761018467774,1.24325,3934.0,3933.9,0.7663]
[1761018467979,1.83545515,3934.0,3933.9,0.3192]
[1761018468585,1.83545515,3934.0,3933.9,0.5392]
[1761018473477,1.83545515,3934.0,3933.9,0.7663]
[1761018475595,1.95065515,3934.0,3933.9,0.3192]
[1761018476089,1.24327,3933.7,3933.6,0.22252715]
[1761018476392,1.83547515,3933.7,3933.6,0.44962715]
[1761018476889,1.83547515,3933.7,3933.6,0.76882715]
[1761018479090,1.83547515,3933.7,3933.6,0.32172715]
[1761018479792,1.83547515,3933.7,3933.6,0.53652715]
[1761018479992,1.83547515,3933.7,3933.6,0.32172715]
[1761018480192,1.83547515,3933.7,3933.6,0.53652715]
[1761018482789,1.83547515,3933.7,3933.6,0.00252715]
[1761018483687,3.20042409,3933.7,3933.6,0.00252715]
[1761018484285,4.11346393,3933.7,3933.6,0.00252715]
[1761018484793,3.20042409,3933.7,3933.6,0.00252715]
[1761018486800,1.83547515,3933.7,3933.6,0.55162715]
[1761018486990,1.83547515,3933.7,3933.6,0.33682715]
[1761018487398,1.83547515,3933.7,3933.6,0.00252715]
[1761018487698,2.74877776,3933.7,3933.6,0.77842715]
[1761018488702,1.04967515,3933.7,3933.6,0.77842715]
[1761018489008,1.27927515,3933.7,3933.6,1.23591715]
[1761018489194,0.59220515,3933.7,3933.6,1.23591715]
[1761018489393,1.04967515,3933.7,3933.6,1.23591715]
[1761018490099,0.59220515,3933.7,3933.6,1.23591715]
[1761018490699,1.04967515,3933.7,3933.6,1.23591715]
[1761018490998,1.83367515,3933.7,3933.6,0.77842715]
[1761018491795,1.83367515,3933.7,3933.6,0.55162715]
[1761018493702,0.59220515,3933.7,3933.6,0.77842715]
[1761018494001,1.04967515,3933.7,3933.6,1.23590715]
[1761018494303,0.59220515,3933.7,3933.6,1.23590715]
[1761018495100,0.45745,3933.9,3933.7,0.89907]
[1761018495302,1.04855278,3933.8,3933.7,0.89907]
[1761018495492,0.59109278,3933.8,3933.7,0.89907]
[1761018495797,0.45745,3934.0,3933.9,0.3343]
[1761018496096,1.04853151,3934.0,3933.9,0.7759]
[1761018496493,1.04853151,3934.0,3933.9,1.23335]
[1761018497103,0.59108151,3934.0,3933.9,1.23335]
[1761018497407,0.45742,3934.2,3934.1,1.19933]
[1761018497804,1.0485425,3934.2,3934.1,1.19933]
[1761018498305,1.2760425,3934.2,3934.1,0.7419]
[1761018498497,0.8016,3933.9,3933.8,0.7419]
[1761018498698,1.3927225,3933.9,3933.8,0.7419]
[1761018499506,1.8501825,3933.9,3933.8,0.7419]
[1761018501510,1.25907,3933.7,3933.6,0.53322715]
[1761018501698,1.8501925,3933.7,3933.6,0.53322715]
[1761018502905,1.8501925,3933.7,3933.6,0.74442715]
[1761018503901,1.8501925,3933.7,3933.6,0.00252715]
[1761018504209,1.8501925,3933.7,3933.6,0.53322715]
[1761018504809,1.85008351,3933.7,3933.6,0.53322715]
[1761018506708,1.85008351,3933.7,3933.6,0.74442715]
[1761018514409,1.85008351,3933.7,3933.6,0.53322715]
[1761018515417,1.85008351,3933.7,3933.6,0.32432715]
[1761018515710,1.85008351,3933.7,3933.6,0.00252715]
[1761018515910,0.45757,3932.9,3932.8,0.34042718]
[1761018516103,1.84268351,3932.9,3932.8,0.34042718]
[1761018516302,1.84268351,3932.9,3932.8,0.02542718]
[1761018516502,1.84268351,3932.9,3932.8,0.34042718]
[1761018516805,1.84268351,3932.9,3932.8,0.34364518]
[1761018517208,1.84268351,3932.9,3932.8,0.02864518]
[1761018518608,1.84268351,3932.9,3932.8,0.56754518]
[1761018519706,1.84268351,3932.9,3932.8,0.02864518]
[1761018519906,1.84268351,3932.9,3932.8,0.56754518]
[1761018520108,1.84268351,3932.9,3932.8,0.79314518]
[1761018520412,1.84268351,3932.9,3932.8,0.56754518]
[1761018520721,1.84268351,3932.9,3932.8,0.34364518]
[1761018520908,1.84268351,3932.9,3932.8,0.56754518]
[1761018522612,1.84268351,3932.9,3932.8,0.02864518]
[1761018523310,1.84268351,3932.9,3932.8,0.56754518]
[1761018524208,1.84268351,3932.9,3932.8,0.02864518]
[1761018526518,1.84268351,3932.9,3932.8,0.34364518]
[1761018527420,1.84268351,3932.9,3932.8,0.02864518]
[1761018527916,1.49608351,3932.9,3932.8,0.79314518]
[1761018528113,1.84268351,3932.9,3932.8,0.79314518]
[1761018528516,1.84268351,3932.9,3932.8,0.02864518]
[1761018529013,1.84268351,3932.9,3932.8,0.56754518]
[1761018529319,1.84268351,3932.9,3932.8,0.79314518]
[1761018530615,1.84268351,3932.9,3932.8,0.02864518]
[1761018531022,1.84268351,3932.9,3932.8,0.56754518]
[1761018531423,1.84268351,3932.9,3932.8,0.79314518]
[1761018531617,1.49608351,3932.9,3932.8,0.79314518]
[1761018531917,1.26528351,3932.9,3932.8,1.25072518]
[1761018532120,1.84268351,3932.9,3932.8,0.79314518]
[1761018534618,1.84268351,3932.9,3932.8,1.25072518]
[1761018535626,1.49608351,3932.9,3932.8,1.25072518]
[1761018536825,1.49608351,3932.9,3932.8,0.79314518]
[1761018538225,1.49608351,3932.9,3932.8,1.25072518]
[1761018540430,1.49608351,3932.9,3932.8,0.79314518]
[1761018540822,1.82328351,3932.9,3932.8,0.79314518]
[1761018542331,1.49608351,3932.9,3932.8,0.79314518]
[1761018542534,1.26528351,3932.9,3932.8,0.79314518]
[1761018542733,1.26248351,3932.9,3932.8,0.79314518]
[1761018542935,1.81618351,3932.9,3932.8,0.79314518]
[1761018543727,1.26248351,3932.9,3932.8,0.79314518]
[1761018544028,1.48898351,3932.9,3932.8,0.79314518]
[1761018544335,1.81618351,3932.9,3932.8,0.79314518]
[1761018546734,1.81618351,3932.9,3932.8,0.34364518]
[1761018548841,1.81618351,3932.9,3932.8,0.02864518]
[1761018549245,2.95406783,3932.9,3932.8,0.02864518]
[1761018550842,1.58968351,3932.9,3932.8,0.79664518]
[1761018551142,1.81618351,3932.9,3932.8,0.79664518]
[1761018553951,0.59101351,3932.9,3932.8,2.3921095]
[1761018554237,0.91228703,3933.2,3932.8,2.3921095]
[1761018554238,0.45754,3933.2,3933.1,0.768]
[1761018554446,0.67142,3933.3,3933.2,0.768]
[1761018554651,1.81424908,3933.3,3933.2,0.768]
[1761018554838,2.9521334,3933.3,3933.2,0.3205]
[1761018555041,0.99867,3932.9,3932.8,0.25284518]
[1761018555237,1.81429908,3932.9,3932.8,0.47614518]
[1761018555437,1.48709908,3932.9,3932.8,0.47614518]
[1761018555638,1.48709908,3932.9,3932.8,0.79664518]
[1761018556334,1.81709908,3932.9,3932.8,0.02864518]
[1761018556643,1.81709908,3932.9,3932.8,0.35184518]
[1761018556841,1.81709908,3932.9,3932.8,0.57134518]
[1761018557046,1.81709908,3932.9,3932.8,0.79574518]
[1761018557737,1.04669908,3932.9,3932.8,1.9336295]
[1761018558145,0.58912908,3932.9,3932.8,1.9336295]
[1761018558342,0.45756,3933.0,3932.9,0.7671]
[1761018558735,1.27465692,3933.0,3932.9,0.7671]
[1761018559250,1.82175692,3933.0,3932.9,0.7671]
[1761018561359,0.58899692,3933.0,3932.9,1.22467]
[1761018561948,1.04655692,3933.0,3932.9,1.22467]
[1761018562346,1.82175692,3933.0,3932.9,0.5427]
[1761018562551,0.78757,3932.9,3932.8,0.02864518]
[1761018562848,1.82176692,3932.9,3932.8,0.02864518]
[1761018563046,1.82176692,3932.9,3932.8,0.35184518]
[1761018563240,1.82176692,3932.9,3932.8,0.57134518]
[1761018565647,1.82176692,3932.9,3932.8,0.02864518]
[1761018565852,1.82176692,3932.9,3932.8,0.35184518]
[1761018566746,1.82176692,3932.9,3932.8,0.57134518]
[1761018566948,1.82176692,3932.9,3932.8,0.79574518]
[1761018568350,1.04656692,3932.9,3932.8,1.25332518]
[1761018568554,1.26406692,3932.9,3932.8,1.25332518]
[1761018569655,0.58899692,3932.9,3932.8,6.25332518]
[1761018569854,0.45753,3933.2,3932.8,6.25332518]
[1761018569855,0.45753,3933.2,3933.1,1.24384]
[1761018570059,0.45753,3933.2,3933.1,2.38172432]
[1761018570261,1.26406321,3933.2,3933.1,2.38172432]
[1761018570459,0.80653321,3933.2,3933.1,2.38172432]
[1761018570755,1.26406321,3933.2,3933.1,2.38172432]
[1761018572256,1.26406321,3933.2,3933.0,0.1308]
[1761018572257,1.21675,3933.1,3933.0,0.45756]
[1761018572461,1.80578321,3933.1,3933.0,0.45756]
[1761018572656,1.80578321,3933.1,3933.0,1.01236]
[1761018573245,1.34823321,3933.1,3933.0,1.24386]
[1761018573559,0.7592,3933.0,3932.9,0.5548]
[1761018573755,1.34823321,3933.0,3932.9,0.5548]
[1761018573956,1.80579321,3933.0,3932.9,0.5548]
[1761018575265,0.78817,3932.9,3932.8,0.02864518]
[1761018575454,1.80580321,3932.9,3932.8,0.58344518]
[1761018575754,1.34823321,3932.9,3932.8,0.81494518]
[1761018575953,1.01763321,3932.9,3932.8,1.9528295]
[1761018577765,1.34823321,3932.9,3932.8,1.9528295]
[1761018578061,1.34823321,3932.9,3932.8,0.81494518]
[1761018578265,1.01763321,3932.9,3932.8,0.81494518]
[1761018578561,1.34823321,3932.9,3932.8,0.81494518]
[1761018579060,1.47520321,3932.9,3932.8,1.27252518]
[1761018579855,1.80580321,3932.9,3932.8,1.27252518]
[1761018581665,1.80580321,3932.9,3932.8,0.58344518]
[1761018581870,1.80580321,3932.9,3932.8,0.02864518]
[1761018584563,1.80523225,3932.9,3932.8,0.02864518]
[1761018585870,1.80523225,3932.9,3932.8,0.35274518]
[1761018586471,1.80523225,3932.9,3932.8,0.02864518]
[1761018596273,1.80523225,3932.9,3932.8,0.35274518]
[1761018596475,1.80523225,3932.9,3932.8,0.02864518]
[1761018598777,1.80523225,3932.9,3932.8,0.56854518]
[1761018600277,1.80523225,3932.9,3932.8,0.35294518]
[1761018600874,1.80523225,3932.9,3932.8,1.02612518]
[1761018601071,1.80523225,3932.9,3932.8,0.56854518]
[1761018601273,1.80523225,3932.9,3932.8,0.35294518]
[1761018601477,1.80523225,3932.9,3932.8,0.02864518]
[1761018601676,1.80523225,3932.9,3932.8,0.35294518]
[1761018601877,1.80523225,3932.9,3932.8,0.56854518]
[1761018603585,1.80523225,3932.9,3932.8,0.35294518]
[1761018603875,1.80523225,3932.9,3932.8,0.02864518]
[1761018611881,4.08317056,3932.9,3932.8,0.02864518]
[1761018612084,3.17088353,3932.9,3932.8,0.02864518]
[1761018612286,1.22668,3931.9,3931.8,0.2156]
[1761018612798,1.81835786,3931.9,3931.8,0.5399]
[1761018613094,1.81835786,3931.9,3931.8,0.9976]
[1761018613294,1.2298233,3931.9,3931.8,1.00042074]
[1761018613894,1.2298233,3931.9,3931.8,1.21772074]
[1761018614295,0.0031433,3931.9,3931.8,1.21772074]
[1761018614497,0.0031433,3931.9,3931.8,6.21772074]
[1761018615299,0.0031433,3931.9,3931.8,7.57935857]
[1761018615501,1.03788359,3933.0,3932.8,0.99747]
[1761018615502,0.769,3932.9,3932.8,0.99747]
[1761018615698,1.36027951,3932.9,3932.8,0.99747]
[1761018616297,1.36027951,3932.9,3932.8,0.5399]
[1761018616496,0.759,3932.7,3932.6,0.77489]
[1761018616697,1.35027951,3932.7,3932.6,0.77489]
[1761018617198,1.35027951,3932.7,3932.6,0.99549]
[1761018619412,1.35027951,3932.7,3932.6,1.22129]
[1761018619802,1.02877951,3932.7,3932.6,1.22129]
[1761018620509,0.81917951,3932.7,3932.6,1.22129]
[1761018620705,0.59127951,3932.7,3932.6,1.22129]
[1761018621009,0.8193513,3932.8,3932.7,0.90399]
[1761018621510,0.8193513,3932.8,3932.7,1.22129]
[1761018621910,1.3504513,3932.8,3932.7,1.22129]
[1761018622900,0.8193513,3932.8,3932.7,1.22129]
[1761018623096,0.04808063,3932.8,3932.7,6.22129]
[1761018623300,0.3432,3933.5,3932.8,0.3173]
[1761018623502,0.4375,3932.9,3932.8,1.22128]
[1761018623907,0.759,3932.9,3932.8,1.22128]
[1761018624105,0.4375,3932.9,3932.8,1.22128]
[1761018624306,0.22982378,3932.9,3932.8,1.22128]
[1761018624505,0.00192378,3932.9,3932.8,1.22128]
[1761018624706,0.00192378,3932.9,3932.8,7.59237901]
[1761018625308,0.00192378,3932.9,3932.8,6.22128]
[1761018626312,0.5494,3934.0,3933.9,1.22115]
[1761018626612,0.759,3934.0,3933.9,1.22115]
[1761018627112,0.759,3934.0,3933.9,1.4230526]
[1761018627317,0.00254354,3934.0,3933.9,1.4230526]
[1761018628706,0.75904354,3934.0,3933.9,1.4230526]
[1761018630206,0.75904354,3934.0,3933.9,0.9656026]
[1761018630402,0.75904354,3934.0,3933.5,0.1303]
[1761018630403,0.317,3933.6,3933.5,0.3283]
[1761018630616,1.21399,3933.6,3933.5,0.3283]
[1761018630810,1.21399,3933.6,3932.8,1.36964503]
[1761018630811,0.317,3933.2,3932.9,0.45756]
[1761018631115,0.1153,3933.5,3932.9,0.41034164]
[1761018631116,0.7565,3933.0,3932.9,0.41034164]
[1761018631416,0.7565,3933.0,3932.9,0.94754164]
[1761018632012,0.4395,3933.0,3932.9,0.94754164]
[1761018633016,0.4395,3933.0,3932.9,0.7485]
[1761018633214,0.7565,3933.0,3932.9,0.7485]
[1761018633413,0.7565,3933.0,3932.9,0.3283]
[1761018633714,0.5282,3932.8,3932.7,0.3283]
[1761018634011,0.89709,3932.7,3932.6,0.3283]
[1761018634513,1.33951,3932.5,3932.4,8.97]
[1761018634719,1.21415,3932.2,3932.1,0.5396]
[1761018635220,0.7565,3932.2,3932.1,0.5396]
[1761018635717,0.7565,3932.2,3932.1,0.7485]
[1761018637418,0.4395,3932.2,3932.1,0.7485]
[1761018637620,0.2112,3932.2,3932.1,0.7485]
[1761018638117,0.2112,3932.4,3932.3,0.4202]
[1761018638418,0.2112,3932.4,3932.3,0.7485]
[1761018638612,0.7565,3932.4,3932.3,0.7485]
[1761018639314,0.7565,3932.4,3932.3,0.5396]
[1761018639924,0.45764,3932.3,3932.1,0.45766]
[1761018640221,0.7565,3932.2,3932.1,0.87786]
[1761018640619,0.7565,3932.2,3932.1,1.20616]
[1761018641619,0.7565,3932.2,3932.1,0.7485]
[1761018642715,0.2112,3932.2,3932.1,0.7485]
[1761018642916,0.66884,3932.3,3932.2,1.20615]
[1761018643419,1.21414,3932.3,3932.2,1.20615]
[1761018643620,0.4395,3932.3,3932.2,1.20615]
[1761018644716,0.98581,3932.6,3932.5,1.33821]
[1761018646814,0.66881,3932.6,3932.5,1.33821]
[1761018647118,0.2112,3932.6,3932.5,1.33821]
[1761018647323,0.66878,3932.8,3932.7,1.20609]
[1761018648718,1.21408,3932.8,3932.7,1.20609]
[1761018650726,0.7565,3932.8,3932.7,1.20609]
[1761018650925,1.21408,3932.8,3932.7,1.20609]
[1761018651430,1.21408,3932.8,3932.7,0.7485]
[1761018651622,1.21404,3933.1,3933.0,1.33815]
[1761018651819,0.89704,3933.1,3933.0,1.33815]
[1761018652216,1.21404,3933.1,3933.0,1.33815]
[1761018653223,1.21404,3933.1,3933.0,0.8806]
[1761018653930,1.21404,3933.1,3933.0,1.33816]
[1761018657333,1.7907375,3933.1,3933.0,0.3283]
[1761018657529,0.45757,3932.9,3932.8,0.45757]
[1761018657730,1.2056,3932.6,3932.5,0.2225]
[1761018658331,1.2056,3932.6,3932.5,0.99341]
[1761018659935,1.2056,3932.6,3932.5,1.33211]
[1761018660231,1.2056,3932.6,3932.5,0.8745]
[1761018661228,0.4319,3932.4,3932.3,0.3133]
[1761018661428,1.20564,3932.4,3932.3,0.99344]
[1761018661935,1.20564,3932.4,3932.3,1.20184]
[1761018662838,0.748,3932.4,3932.3,1.20184]
[1761018663340,1.59577863,3932.7,3932.6,0.7442]
[1761018663538,2.38834031,3932.7,3932.6,1.2018]
[1761018664039,2.70444031,3932.7,3932.6,1.2018]
[1761018664226,1.25015168,3932.7,3932.6,1.2018]
[1761018665343,1.25015168,3932.7,3932.6,0.7442]
[1761018665527,1.56625168,3932.7,3932.6,0.7442]
[1761018667741,1.10866168,3932.7,3932.6,1.2018]
[1761018667947,0.57796168,3932.7,3932.6,1.2018]
[1761018668143,1.20555,3933.1,3933.0,0.8745]
[1761018668452,0.45778,3931.1,3931.0,3.20057012]
[1761018668639,0.45784,3930.6,3930.5,0.4436]
[1761018668941,2.17371394,3930.6,3930.5,0.4436]
[1761018669340,2.17637016,3930.6,3930.5,0.4458992]
[1761018670147,1.03818153,3930.6,3930.5,0.4458992]
[1761018670338,2.17637016,3930.6,3930.5,0.6683992]
[1761018670849,2.17637016,3930.6,3930.5,0.8767992]
[1761018671246,1.59868485,3930.6,3930.5,0.8767992]
[1761018671439,1.59868485,3930.6,3930.5,0.6683992]
[1761018671744,2.2319437,3930.6,3930.5,0.6683992]
[1761018672243,1.59868485,3930.6,3930.5,0.6683992]
[1761018673241,1.59868485,3930.6,3930.5,0.4458992]
[1761018674648,1.59868485,3930.6,3930.5,0.6683992]
[1761018675145,1.59868485,3930.6,3930.5,0.4458992]
[1761018675849,6.59868485,3930.6,3930.5,0.1325992]
[1761018676044,7.23050436,3930.6,3930.5,0.1325992]
[1761018676244,6.59868485,3930.6,3930.5,0.0022992]
[1761018676446,9.05510202,3930.6,3930.1,0.3271]
[1761018676745,1.59606863,3930.2,3930.1,0.3271]
[1761018677044,0.45788,3930.2,3930.1,0.3271]
[1761018677450,0.45788,3930.2,3930.1,0.3292628]
[1761018678646,9.47888,3930.2,3930.1,0.3292628]
[1761018678839,0.45788,3930.2,3930.1,0.3292628]
[1761018679039,14.47688,3930.2,3930.1,0.0021628]
[1761018679236,1.14479,3930.0,3929.6,0.3271]
[1761018679455,1.13818863,3929.7,3929.6,0.3271]
[1761018679641,1.59612863,3929.7,3929.6,0.555]
[1761018680155,1.59612863,3929.7,3929.6,0.55694242]
[1761018680648,1.13818863,3929.7,3929.6,0.78224242]
[1761018685654,1.13818863,3929.7,3929.6,0.55694242]
[1761018686352,1.13818863,3929.7,3929.6,0.78224242]
[1761018687454,1.13818863,3929.7,3929.6,0.32904242]
[1761018688548,1.76862667,3929.7,3929.0,0.3449]
[1761018688749,1.59619863,3929.1,3929.0,0.3449]
[1761018688948,1.59619863,3929.1,3929.0,0.1303]
[1761018689547,1.59619863,3929.1,3929.0,0.13335617]
[1761018690258,1.59619863,3929.1,3929.0,0.34795617]
[1761018690459,10.61719863,3929.1,3929.0,0.89785617]
[1761018690959,10.61719863,3929.1,3929.0,0.47265617]
[1761018692055,10.61719863,3929.1,3929.0,0.00305617]
[1761018692251,16.75538726,3929.1,3929.0,0.00305617]
[1761018692451,0.45807,3928.6,3928.5,0.4762]
[1761018692661,0.4581,3928.4,3928.1,0.3393]
[1761018692859,1.13818863,3928.2,3928.1,0.7645]
[1761018693559,1.13818863,3928.2,3928.1,0.76772252]
[1761018697367,1.13818863,3928.2,3928.1,0.34252252]
[1761018697663,0.45811,3928.3,3928.1,0.34252252]
[1761018697857,1.13818863,3928.2,3928.1,0.42842252]
[1761018698168,1.77197599,3928.2,3928.1,0.42842252]
[1761018698357,1.77197599,3928.2,3928.1,0.76772252]
[1761018700867,0.63378736,3928.2,3928.1,0.76772252]
[1761018701364,0.63378736,3928.2,3928.1,5.76772252]
[1761018701564,1.13818863,3928.6,3928.5,0.9034]
[1761018701765,1.77179343,3928.6,3928.5,0.9034]
[1761018702062,1.77179343,3928.6,3928.5,0.6928]
[1761018702465,1.77179343,3928.6,3928.5,0.4782]
[1761018702664,0.6336048,3928.6,3928.5,0.4782]
[1761018703562,0.6336048,3928.6,3928.5,0.6928]
[1761018703763,0.45807,3928.6,3928.5,0.6928]
[1761018703958,1.0916748,3928.6,3928.5,0.6928]
[1761018704566,1.0916748,3928.6,3928.5,0.4782]
[1761018704767,1.0916748,3928.6,3928.5,0.3393]
[1761018704963,1.0916748,3928.6,3928.5,0.6928]
[1761018705166,2.00273453,3928.6,3928.5,0.6928]
[1761018706360,1.0916748,3928.6,3928.5,0.3393]
[1761018706559,1.0916748,3928.6,3928.1,0.00322252]
[1761018706560,0.45811,3928.3,3928.2,0.3393]
[1761018706761,2.50476784,3928.3,3928.2,0.3393]
[1761018707069,2.22990343,3928.3,3928.2,1.22261]
[1761018707569,2.22990343,3928.3,3928.2,0.5539]
[1761018707765,0.6336048,3928.3,3928.2,0.7645]
[1761018710168,2.50474784,3928.4,3928.3,0.7645]
[1761018710371,3.14059199,3928.4,3928.3,0.7645]
[1761018712267,1.54431336,3928.4,3928.3,0.7645]
[1761018712572,0.90846921,3928.5,3928.4,0.7645]
[1761018712763,2.04665784,3928.5,3928.4,0.7645]
[1761018712964,2.68277939,3928.5,3928.4,0.7645]
[1761018715179,1.54459076,3928.5,3928.4,0.7645]
[1761018715368,0.63612155,3928.5,3928.4,0.7645]
[1761018715570,0.90846921,3928.6,3928.5,1.36148]
[1761018716076,1.54065863,3928.6,3928.5,1.36148]
[1761018716278,2.96344952,3928.8,3928.7,0.7645]
[1761018716471,3.59598426,3928.8,3928.7,0.7645]
[1761018716677,3.13793426,3928.8,3928.7,0.7645]
[1761018716878,1.77072337,3928.8,3928.7,0.7645]
[1761018717273,0.45811,3928.3,3928.2,0.3393]
[1761018717577,2.22883337,3928.3,3928.2,0.3393]
[1761018717775,1.77072337,3928.3,3928.2,0.7726]
[1761018718073,0.63253474,3928.3,3928.2,0.7726]
[1761018725779,0.63253474,3928.3,3928.2,0.3393]
[1761018725973,0.63253474,3928.3,3928.2,0.5711]
[1761018726176,0.45811,3928.2,3928.1,0.34692252]
[1761018726475,1.09064474,3928.2,3928.1,0.79742252]
[1761018726884,1.09064474,3928.2,3928.1,0.57872252]
[1761018727184,1.09064474,3928.2,3928.1,0.34692252]
[1761018727387,1.09064474,3928.2,3928.1,0.57872252]
[1761018727785,0.63253474,3928.2,3928.1,0.79742252]
[1761018729474,0.63253474,3928.2,3928.1,1.25555252]
[1761018729675,0.63253474,3928.2,3928.1,0.79742252]
[1761018731976,0.9115002,3929.1,3928.9,0.4505]
[1761018732181,0.9115002,3929.3,3929.1,0.4505]
[1761018732479,0.23381982,3929.2,3929.1,0.3437]
[1761018732688,0.91202429,3929.2,3929.1,0.3437]
[1761018733073,0.458,3929.2,3929.1,0.7942]
[1761018733478,0.91202429,3929.3,3929.2,0.5755]
[1761018733677,0.91202429,3929.3,3929.2,0.7942]
[1761018733971,2.73846852,3929.4,3929.2,0.4505]
[1761018734176,2.73846852,3929.4,3929.3,0.3437]
[1761018734780,0.45801,3929.1,3929.0,0.1324]
[1761018735486,0.45801,3929.1,3929.0,0.4761]
[1761018736384,0.45801,3929.1,3929.0,0.7079]
[1761018736687,0.45807,3928.6,3928.5,0.353]
[1761018736883,0.45807,3928.6,3928.5,0.5771]
[1761018737190,1.82653423,3928.6,3928.5,0.4455]
[1761018738080,0.45811,3928.2,3928.1,0.22382252]
[1761018738784,0.45809,3928.4,3928.2,0.3131]
[1761018739686,1.36846423,3928.3,3928.2,0.3131]
[1761018740190,1.36846423,3928.3,3928.2,0.5337]
[1761018741987,1.36846423,3928.3,3928.2,0.3131]
[1761018743493,0.45811,3928.2,3928.1,0.00322252]
[1761018743694,0.45811,3928.2,3928.1,0.31632252]
[1761018743990,0.45811,3928.2,3928.1,0.00322252]
[1761018743991,1.07056338,3928.2,3928.1,0.00322252]
[1761018744183,6.07056338,3928.2,3928.1,0.00322252]
[1761018744381,6.07056338,3928.2,3928.1,0.53692252]
[1761018744382,1.07056338,3928.2,3928.1,0.53692252]
[1761018744779,1.07056338,3928.2,3928.1,0.00322252]
[1761018745194,6.07056338,3928.2,3928.1,0.00322252]
[1761018745681,15.13056338,3928.2,3928.1,0.00322252]
[1761018745883,15.13056338,3928.2,3928.1,0.31632252]
[1761018746090,16.49902761,3928.2,3928.1,0.00322252]
[1761018746989,0.45815,3927.9,3927.8,0.02545954]
[1761018747192,10.43246423,3927.9,3925.9,1.81520917]
[1761018747492,10.43246423,3927.9,3925.8,2.26998988]
[1761018747493,0.45839,3925.9,3925.7,0.3131]
[1761018747695,0.4584,3925.7,3925.5,0.1313]
[1761018747877,0.45847,3925.2,3925.0,0.1313]
[1761018748081,0.00274737,3925.2,3925.1,0.7531]
[1761018748489,1.82677423,3926.6,3926.5,0.1345]
[1761018748681,1.82677423,3926.6,3926.5,0.6742]
[1761018748682,1.07024651,3926.6,3926.5,0.6742]
[1761018748886,0.61193651,3926.6,3926.5,0.8876]
[1761018749187,0.61193651,3926.6,3926.5,0.4505]
[1761018749382,0.6140489,3926.6,3926.5,0.4505]
[1761018750290,0.6140489,3926.6,3926.2,0.316]
[1761018750291,0.45833,3926.4,3926.2,0.316]
[1761018750495,0.45833,3926.4,3926.3,0.5397]
[1761018750792,1.06957847,3926.4,3926.3,0.7531]
[1761018751198,0.45833,3926.4,3926.3,0.316]
[1761018751687,0.45833,3926.4,3926.3,0.5397]
[1761018751885,0.46041239,3926.6,3926.5,0.1345]
[1761018752088,0.00211239,3926.6,3926.5,0.8876]
[1761018753996,0.00211239,3926.6,3926.5,0.6742]
[1761018754292,0.00211239,3926.6,3926.5,0.8876]
[1761018757195,0.00211239,3926.6,3926.5,0.4505]
[1761018757895,0.00211239,3926.6,3926.2,0.316]
[1761018758491,0.45833,3926.3,3926.2,0.316]
[1761018759389,0.45833,3926.3,3926.2,0.7531]
[1761018760105,0.45836,3926.1,3926.0,0.4505]
[1761018760291,0.45842,3925.6,3925.5,0.3582]
[1761018760795,0.45842,3925.6,3924.5,0.1345]
[1761018760796,0.45848,3925.1,3924.5,0.1345]
[1761018760993,0.45848,3925.1,3925.0,0.00293277]
[1761018761695,0.45848,3925.1,3925.0,0.31893277]
[1761018761896,0.45846,3925.3,3925.1,0.316]
[1761018762092,1.14594,3926.0,3925.3,0.316]
[1761018762398,40.8,3926.1,3925.0,0.59592277]
[1761018762399,0.45847,3925.2,3925.1,0.316]
[1761018762599,0.45847,3925.2,3925.1,0.5397]
[1761018762897,9.092,3926.0,3925.3,0.5397]
[1761018763100,0.45839,3925.8,3925.7,0.316]
[1761018763304,0.45847,3925.2,3925.1,0.316]
[1761018763489,0.45847,3925.2,3925.1,0.7531]
[1761018763692,0.45845,3925.4,3925.2,0.316]
[1761018763896,0.91413668,3926.6,3925.6,0.316]
[1761018764095,0.45834,3926.3,3926.2,0.7531]
[1761018764301,0.45835,3926.2,3926.0,0.4505]
[1761018764803,0.45835,3926.2,3926.1,0.316]
[1761018764997,0.45835,3926.2,3926.1,0.7531]
[1761018766698,0.45835,3926.2,3926.1,0.316]
[1761018766901,0.4584,3925.7,3925.6,0.5397]
[1761018767101,0.4584,3925.7,3925.6,0.7531]
[1761018767299,0.4584,3925.7,3925.6,0.5397]
[1761018767499,0.4584,3925.7,3925.6,0.316]
[1761018767708,0.45845,3925.4,3925.3,0.7531]
[1761018769310,1.14595,3926.0,3925.5,0.8876]
[1761018769311,0.45843,3925.6,3925.5,0.8876]
[1761018769501,0.45843,3925.6,3925.5,0.4505]